fUST/lending_fUST_20240523
["ID","MTS","AMOUNT","RATE_DAILY","PERIOD"]
[327736779,1716407438160,-223.534812,0.00019178,2]
[327736780,1716407438169,-2652.7455304,0.0002028,2]
[327736781,1716407438178,-1164.55507779,0.00020344,2]
[327736783,1716407438187,-3908.62535276,0.00020562,2]
[327736785,1716407438196,-153.24745066,0.00020693,2]
[327736786,1716407438205,-189.67594195,0.00020793,2]
[327736788,1716407438215,-632.50384761,0.00020891,2]
[327736840,1716407443179,-223.534812,0.00019178,2]
[327736843,1716407443194,-223.534812,0.00019178,2]
[327736846,1716407443209,-223.534812,0.00019178,2]
[327736848,1716407443223,-223.534812,0.00019178,2]
[327736850,1716407443237,-223.534812,0.00019178,2]
[327736853,1716407443251,-223.534812,0.00019178,2]
[327736855,1716407443264,-223.534812,0.00019178,2]
[327736858,1716407443279,-223.534812,0.00019178,2]
[327736861,1716407443293,-223.534812,0.00019178,2]
[327736863,1716407443307,-223.534812,0.00019178,2]
[327736866,1716407443322,-223.534812,0.00019178,2]
[327736868,1716407443337,-310.26785561,0.00020891,2]
[327736871,1716407443351,-283.51136865,0.00020891,2]
[327736873,1716407443366,-2634.87580338,0.00020891,2]
[327736875,1716407443383,-710.52070022,0.00020891,2]
[327736877,1716407443397,-1580.09074649,0.00020891,2]
[327736880,1716407443412,-309.58975996,0.00020891,2]
[327736882,1716407443429,-184.80012108,0.00020891,2]
[327736885,1716407443444,-287.56500071,0.00020891,2]
[327736888,1716407443459,-385.87365126,0.00020894,2]
[327736890,1716407443473,-163.97544921,0.00020897,2]
[327736893,1716407443490,-1444.88221143,0.000209,2]
[327737240,1716407573236,772.36964669,9.999e-05,2]
[327737241,1716407575664,207.546847,9.999e-05,2]
[327737242,1716407585473,215.77329794,9.999e-05,2]
[327737243,1716407587384,15244.71942602,0.00015,2]
[327737244,1716407588347,835.85509789,9.999e-05,2]
[327737245,1716407594014,230.90684664,9.999e-05,2]
[327737246,1716407598345,154.98450155,9.999e-05,2]
[327737247,1716407608360,1869.19773284,9.999e-05,2]
[327737248,1716407609119,1351.0491794,9.999e-05,2]
[327737249,1716407616994,455.62493126,9.999e-05,2]
[327737250,1716407617383,410.64660071,9.999e-05,2]
[327737251,1716407618996,186.98085169,9.999e-05,2]
[327737252,1716407619198,2114.91734672,7.697e-05,2]
[327737253,1716407623338,285.15949303,9.999e-05,2]
[327737254,1716407624370,154.98450155,0.00015,2]
[327737255,1716407624574,302.42294018,9.999e-05,2]
[327737256,1716407628786,658.40471002,9.999e-05,2]
[327737257,1716407630326,1339.50128837,9.999e-05,2]
[327737258,1716407633335,154.98450155,9.999e-05,2]
[327737259,1716407645934,154.98450155,9.999e-05,2]
[327737260,1716407954417,17898.9857574,0.00015288,2]
[327737261,1716407954447,7001.0142426,0.00015288,2]
[327737264,1716408002465,1120.8177706,0.00015283,2]
[327737266,1716408117946,721.412678,0.0001527,2]
[327737269,1716408228303,549.2240748,0.00015286,2]
[327737272,1716408228547,1660.2084783,0.00015286,2]
[327737274,1716408314450,156.51884527,9.999e-05,2]
[327737275,1716408350943,823.5300117,0.00015059,2]
[327737276,1716408356150,1550.04567449,0.00015954,2]
[327737281,1716408543959,154.98450155,0.00015,2]
[327737282,1716408556113,-1898.47804059,0.00016036,2]
[327737283,1716408591666,1356.28996517,0.00015936,2]
[327737284,1716408625068,994.69788423,0.00015934,2]
[327737420,1716408638121,-9402.71670639,0.00016029,2]
[327737422,1716408638130,-10512.91470053,0.00016029,2]
[327737424,1716408638139,-3601.81100136,0.00016029,2]
[327737427,1716408638152,-7458.57835399,0.00016029,2]
[327737428,1716408638165,-2598.5410692,0.0001603,2]
[327737431,1716408638175,-156.51884527,0.0001603,2]
[327737433,1716408638184,-2467.15169101,0.00016031,2]
[327737435,1716408638193,-1898.47491461,0.00016032,2]
[327737437,1716408638203,-15000.0,0.00016033,2]
[327737439,1716408638212,-7897.30988261,0.00016033,2]
[327737440,1716408638221,-9563.3328996,0.00016034,2]
[327737442,1716408638231,-360.706339,0.00016852,2]
[327737445,1716408638239,-994.69788422,0.00017175,2]
[327737446,1716408638250,-994.69788422,0.00018416,2]
[327737448,1716408638259,-1356.28996515,0.00018772,2]
[327737451,1716408638268,-821.745892,0.000189,2]
[327737452,1716408638278,-994.69788422,0.00019656,2]
[327737455,1716408638287,-891.17289,0.00020093,2]
[327737456,1716408638296,-581.7589866,0.00020582,2]
[327737458,1716408638305,-267.36,0.00020896,3]
[327737460,1716408638314,-802.13,0.00020896,3]
[327737462,1716408638323,-994.69788422,0.00020897,2]
[327737464,1716408638332,-1945.58794016,0.000209,2]
[327737467,1716408638345,-4830.42440946,0.000209,2]
[327737469,1716408638353,-384.63416588,0.000209,2]
[327737471,1716408638362,-281.0,0.000209,2]
[327737473,1716408638371,-316.15927372,0.00020901,2]
[327737475,1716408638380,-231.40855204,0.00020901,2]
[327737477,1716408638390,-174.87695453,0.00020901,2]
[327737479,1716408638399,-225.94334971,0.00020901,2]
[327737481,1716408638408,-156.56985226,0.00020901,2]
[327737483,1716408638418,-690.19911136,0.00020901,2]
[327737484,1716408638427,-155.13017885,0.00020901,2]
[327737486,1716408638436,-307.68071387,0.00020901,2]
[327737488,1716408638445,-200.0,0.00020901,2]
[327737490,1716408638454,-819.56410061,0.00020901,2]
[327737492,1716408638463,-190.66691876,0.00020901,2]
[327737494,1716408638472,-273.72171019,0.00020901,2]
[327737496,1716408638481,-387.09341113,0.00020901,2]
[327737498,1716408638490,-500.0,0.00020905,2]
[327737500,1716408638500,-500.0,0.00020905,2]
[327737501,1716408638509,-196.58463591,0.00020905,2]
[327737502,1716408638518,-500.0,0.00020905,2]
[327737503,1716408638528,-500.0,0.00020905,2]
[327737504,1716408638537,-337.46509682,0.00020905,2]
[327737505,1716408638545,-252.11149798,0.00020905,2]
[327737983,1716408643174,-247.88850202,0.00020905,2]
[327737985,1716408643189,-500.0,0.00020905,2]
[327737987,1716408643198,-500.0,0.00020905,2]
[327737989,1716408643208,-24.05735399,0.00020905,2]
[327737991,1716408643219,-475.94264601,0.00020905,2]
[327737993,1716408643229,-379.22587999,0.00020905,2]
[327737995,1716408643239,-500.0,0.00020905,2]
[327737998,1716408643248,-500.0,0.00020905,2]
[327737999,1716408643262,-500.0,0.00020905,2]
[327738002,1716408643272,-500.0,0.00020905,2]
[327738003,1716408643281,-500.0,0.00020905,2]
[327738006,1716408643291,-500.0,0.00020905,2]
[327738008,1716408643300,-500.0,0.00020905,2]
[327738010,1716408643309,-500.0,0.00020905,2]
[327738012,1716408643319,-500.0,0.00020905,2]
[327738014,1716408643328,-357.88384194,0.00020905,2]
[327738016,1716408643338,-500.0,0.00020905,2]
[327738017,1716408643347,-500.0,0.00020905,2]
[327738020,1716408643357,-500.0,0.00020905,2]
[327738023,1716408643366,-500.0,0.00020905,2]
[327738026,1716408643375,-500.0,0.00020905,2]
[327738029,1716408643384,-500.0,0.00020905,2]
[327738032,1716408643393,-500.0,0.00020905,2]
[327738035,1716408643402,-500.0,0.00020905,2]
[327738038,1716408643411,-23531.97077151,0.00020906,11]
[327738039,1716408643421,-151.0,0.00020907,2]
[327738041,1716408643431,-155.36396696,0.00020909,2]
[327738043,1716408643440,-306.65032713,0.00020909,2]
[327738046,1716408643450,-179.28015103,0.00020909,2]
[327738048,1716408643460,-192.81194981,0.00020909,2]
[327738050,1716408643469,-186.20470319,0.00020909,4]
[327738052,1716408643478,-264.54391882,0.00020909,2]
[327738053,1716408643487,-330.40986229,0.00020909,2]
[327738054,1716408643496,-1319.71113237,0.0002091,2]
[327738055,1716408643505,-210.14311003,0.0002091,2]
[327738056,1716408643514,-160.62603812,0.00020911,2]
[327738057,1716408643523,-156.42793274,0.00020911,2]
[327738058,1716408643532,-6419.1386522,0.00020911,2]
[327738059,1716408643541,-1149.63675721,0.00020911,2]
[327738060,1716408643552,-720.11009845,0.00020911,2]
[327738061,1716408643561,-158.51655577,0.00020911,2]
[327738062,1716408643572,-273.05472635,0.00020912,2]
[327738063,1716408643581,-1549.29164873,0.00020912,2]
[327738064,1716408643591,-3487.8476503,0.00020912,7]
[327738065,1716408643600,-233.250992,0.00020997,2]
[327738066,1716408643610,-657.40145607,0.00020997,2]
[327738068,1716408643619,-1338.61238436,0.00020997,2]
[327738069,1716408643629,-227.3964875,0.00020997,2]
[327738072,1716408643639,-248.40916042,0.00020997,2]
[327738074,1716408643648,-154.98450155,0.00020997,2]
[327738076,1716408643658,-446.5827274,0.00020998,2]
[327738078,1716408643668,-284.91901029,0.00020998,2]
[327738080,1716408643677,-23626.18928685,0.00021,2]
[327738081,1716408643686,-296.069619,0.00021,2]
[327738084,1716408643696,-582.2243476,0.00021041,2]
[327738086,1716408643705,-190.0381837,0.00021096,2]
[327738088,1716408643715,-291.5019197,0.00021096,2]
[327738090,1716408643724,-291.5019197,0.00021096,2]
[327738091,1716408643734,-291.0352769,0.00021096,2]
[327738094,1716408643743,-633.5586445,0.00021098,2]
[327738096,1716408643753,-921.16266462,0.00021183,2]
[327738098,1716408643762,-1356.28996515,0.00021609,2]
[327738100,1716408643772,-620.67793223,0.00022153,2]
[327738102,1716408643782,-230.4301979,0.00022206,2]
[327738104,1716408643792,-224.89310196,0.00022206,2]
[327738106,1716408643801,-583.54414634,0.00022207,2]
[327738108,1716408643811,-534.72,0.00022266,3]
[327738110,1716408643820,-162.19869283,0.00022297,2]
[327738112,1716408643831,-309.90594063,0.00022297,2]
[327738114,1716408643840,-303.61939622,0.00022297,2]
[327738116,1716408643849,-233.73342968,0.00022298,2]
[327738118,1716408643859,-526.84670982,0.00022298,2]
[327738120,1716408643869,-155.18075614,0.00022298,2]
[327738122,1716408643879,-1684.33877323,0.00022298,2]
[327738124,1716408643889,-771.09466526,0.00022298,2]
[327738126,1716408643899,-2400.65057528,0.00022298,2]
[327738128,1716408643909,-845.0410987,0.00022298,2]
[327738130,1716408643919,-215.58179503,0.00022298,2]
[327738131,1716408643929,-802.95221712,0.00022298,2]
[327738132,1716408643939,-685.92663708,0.00022299,2]
[327738133,1716408643949,-209.27000577,0.00022299,2]
[327738134,1716408643959,-231.17986515,0.00022299,2]
[327738135,1716408643969,-5293.86694473,0.000223,6]
[327738136,1716408643979,-513.05973911,0.000223,2]
[327738137,1716408643988,-694.0256641,0.000223,2]
[327738138,1716408643998,-173.81782377,0.000223,2]
[327738139,1716408644008,-155.40007447,0.000223,2]
[327738140,1716408644017,-620.03389661,0.00023261,2]
[327738141,1716408644026,-410.26876197,0.00023314,2]
[327738142,1716408644035,-224.24829037,0.00023314,2]
[327738143,1716408644045,-948.3037773,0.00023315,2]
[327738144,1716408644055,-941.9818398,0.00023315,2]
[327738145,1716408644064,-821.745892,0.000239,2]
[327738146,1716408644073,-151.0,0.00024237,5]
[327738147,1716408644082,-151.0,0.00024237,5]
[327738148,1716408644091,-42187.12402324,0.00024382,2]
[327738149,1716408644153,-705.58448431,0.00024382,2]
[327738150,1716408644170,-859.68153428,0.00024382,2]
[327738151,1716408644182,-5018.61224055,0.00024382,2]
[327738152,1716408644193,-821.21323903,0.00024382,2]
[327738153,1716408644203,-256.441224,0.00024384,2]
[327738154,1716408644214,-174.6210423,0.00024384,2]
[327738155,1716408644223,-620.00169483,0.00024424,2]
[327738156,1716408644234,-1356.28996515,0.00024445,2]
[327738157,1716408644245,-380.0,0.00024658,2]
[327738158,1716408644254,-151.0,0.00025072,5]
[327738159,1716408644264,-151.0,0.00025072,5]
[327738160,1716408644273,-496.0,0.00025102,2]
[327738161,1716408644283,-152.065,0.00025102,2]
[327738162,1716408644292,-360.706339,0.00025278,2]
[327738163,1716408644302,-204.54101437,0.00025488,2]
[327738164,1716408644311,-635.38469464,0.00025488,2]
[327738165,1716408644321,-380.22242556,0.00025488,2]
[327738166,1716408644331,-484.380361,0.00025488,2]
[327738167,1716408644341,-184.54084537,0.00025488,2]
[327738168,1716408644350,-898.00692655,0.00025488,2]
[327738169,1716408644360,-942.77170322,0.00025488,2]
[327738171,1716408644369,-244.95155011,0.00025488,4]
[327738172,1716408644381,-297.97559397,0.00025488,2]
[327738174,1716408644391,-26212.95298073,0.0002549,2]
[327738176,1716408644401,-204.5437107,0.00025559,2]
[327738178,1716408644410,-408.9876844,0.00025559,2]
[327738180,1716408644423,-204.5437107,0.00025559,2]
[327738182,1716408644433,-204.5437107,0.00025559,2]
[327738184,1716408644444,-204.5437107,0.00025559,2]
[327738186,1716408644453,-204.5437107,0.00025559,2]
[327738188,1716408644462,-204.5437107,0.00025559,2]
[327738190,1716408644472,-204.5437107,0.00025559,2]
[327738192,1716408644482,-204.5437107,0.00025559,2]
[327738194,1716408644491,-204.5437107,0.00025559,2]
[327738196,1716408644500,-407.8387569,0.00025559,2]
[327738198,1716408644509,-620.00008474,0.00025645,2]
[327738200,1716408644519,-151.0,0.00025907,5]
[327738202,1716408644528,-408.792011,0.00026027,2]
[327738204,1716408644537,-417.9,0.000264,2]
[327738206,1716408644547,-160.0,0.000265,2]
[327738208,1716408644557,-309.7831518,0.00026503,2]
[327738210,1716408644567,-551.9765658,0.00026503,2]
[327738224,1716408644577,-330.62457633,0.00026503,2]
[327738227,1716408644720,-345.410883,0.00026504,2]
[327738229,1716408644731,-26511.06130516,0.00026505,2]
[327738231,1716408644741,-151.0,0.00026743,5]
[327738233,1716408644751,-9429.492419,0.000269,3]
[327738288,1716408646170,-987.01498837,0.000269,3]
[327738289,1716408646182,-11556.08455147,0.000269,3]
[327738290,1716408646194,-8644.94517,0.000269,3]
[327738291,1716408646206,-3477.5,0.000269,3]
[327738292,1716408646236,-265.29018593,0.000269,3]
[327738295,1716408646250,-1985.76597241,0.000269,3]
[327738316,1716409082699,500.0,0.00034388,120]
[327738373,1716409833067,-2189.87307701,0.00019103,2]
[327738374,1716409833079,-400.61665992,0.00019103,2]
[327738425,1716409838481,-5921.08462482,0.00019102,2]
[327738438,1716409838616,-5139.30473053,0.00019102,2]
[327738440,1716409838626,-8.05133227,0.00019103,2]
[327738442,1716409838635,-7897.30988261,0.00019104,2]
[327738444,1716409838645,-15000.0,0.00019105,2]
[327738446,1716409838654,-9402.71670639,0.00019105,2]
[327738448,1716409838664,-1898.47491461,0.00019105,2]
[327738450,1716409838674,-24890.0,0.00019117,2]
[327738452,1716409838684,-186.88125335,0.00020912,2]
[327738454,1716409838693,-604.42403362,0.00020913,2]
[327738456,1716409838703,-153.24745066,0.00022075,2]
[327738458,1716409838712,-5600.0,0.000223,6]
[327738460,1716409838721,-151.0,0.00024148,5]
[327738462,1716409838731,-151.0,0.00024148,5]
[327738464,1716409838740,-243.619162,0.00024384,2]
[327738466,1716409838749,-151.0,0.00024991,5]
[327738468,1716409838758,-151.0,0.00024991,5]
[327738470,1716409838768,-151.0,0.00025835,5]
[327738472,1716409838777,-2398.63206596,0.00026,2]
[327738841,1716409842675,-101.44793404,0.00026,2]
[327738842,1716409842686,-417.9,0.000264,2]
[327738843,1716409842697,-151.0,0.00026678,5]
[327738844,1716409842707,-2071.4,0.00026869,3]
[327738845,1716409842717,-500.0,0.00026878,2]
[327738846,1716409842727,-162.52537714,0.00026878,2]
[327738847,1716409842738,-500.0,0.00026878,2]
[327738848,1716409842748,-500.0,0.00026878,2]
[327738849,1716409842758,-500.0,0.00026878,2]
[327738850,1716409842767,-500.0,0.00026878,2]
[327738851,1716409842777,-651.23952904,0.00026878,2]
[327738852,1716409842787,-500.0,0.00026878,2]
[327738853,1716409842797,-500.0,0.00026878,2]
[327738854,1716409842808,-500.0,0.00026878,2]
[327738855,1716409842818,-500.0,0.00026878,2]
[327738856,1716409842828,-500.0,0.00026878,2]
[327738857,1716409842838,-500.0,0.00026878,2]
[327738858,1716409842847,-500.0,0.00026878,2]
[327738859,1716409842857,-500.0,0.00026878,2]
[327738860,1716409842871,-500.0,0.00026878,2]
[327738861,1716409842882,-500.0,0.00026878,2]
[327738862,1716409842892,-500.0,0.00026878,2]
[327738863,1716409842902,-500.0,0.00026878,2]
[327738864,1716409842912,-500.0,0.00026878,2]
[327738865,1716409842922,-500.0,0.00026878,2]
[327738866,1716409842932,-500.0,0.00026878,2]
[327738867,1716409842942,-500.0,0.00026878,2]
[327738868,1716409842952,-539.09043212,0.00026878,2]
[327738869,1716409842962,-500.0,0.00026878,2]
[327738870,1716409842971,-500.0,0.00026878,2]
[327738871,1716409842982,-15322.21925606,0.00026879,11]
[327738873,1716409842991,-324.0,0.000269,2]
[327738875,1716409843002,-160.0,0.000269,2]
[327738876,1716409843012,-154.927,0.00026916,2]
[327738877,1716409843022,-620.00000424,0.00026927,2]
[327738878,1716409843032,-21021.18929822,0.00026997,2]
[327738879,1716409843043,-869.4530048,0.00026998,2]
[327738881,1716409843109,-107.06614681,0.00026998,2]
[327738884,1716409843126,-195.80096189,0.00026998,2]
[327738904,1716409843536,-0.01939686,0.00026988,3]
[327738930,1716409846858,-3234.13060314,0.00026988,3]
[327738931,1716409846871,-55.00310274,0.00026998,2]
[327738932,1716409846881,-128.06659597,0.00026998,2]
[327738933,1716409846893,-139.75553629,0.00026998,2]
[327738934,1716409846903,-122.55066129,0.00026998,2]
[327738935,1716409846921,-54.68858597,0.00026998,2]
[327738936,1716409846931,-200.59099617,0.00026998,2]
[327738937,1716409846940,-188.19286874,0.00026998,2]
[327738938,1716409846950,-190.32568759,0.00026998,2]
[327738939,1716409846960,-154.98450155,0.00026998,2]
[327738940,1716409846970,-155.04399458,0.00026998,2]
[327738942,1716409846979,-155.08166367,0.00026998,2]
[327738944,1716409846991,-95.64993316,0.00026998,2]
[327738945,1716409847000,-267.60951126,0.00026998,2]
[327738946,1716409847015,-678.93081851,0.00026998,2]
[327738949,1716409942505,331.10166785,9.999e-05,2]
[327738950,1716409967218,154.98450155,9.999e-05,2]
[327738951,1716410003021,19258.66211697,9.999e-05,2]
[327738954,1716410017074,19258.66211697,9.999e-05,2]
[327738955,1716410035022,2153.13472575,9.999e-05,2]
[327738957,1716410273766,522.84603088,9.999e-05,2]
[327738958,1716410314046,702.90258977,9.999e-05,2]
[327738959,1716410314460,154.98450155,9.999e-05,2]
[327738960,1716410314787,230.90684664,9.999e-05,2]
[327738961,1716410315773,186.98085169,9.999e-05,2]
[327738962,1716410317444,154.98450155,9.999e-05,2]
[327738963,1716410319318,285.15949303,9.999e-05,2]
[327738964,1716410319527,154.98450155,9.999e-05,2]
[327738965,1716410320737,835.85509789,9.999e-05,2]
[327738966,1716410324965,913.56340849,9.999e-05,2]
[327738967,1716410327239,720.27106202,9.999e-05,2]
[327738968,1716410331162,1339.50128837,9.999e-05,2]
[327738969,1716410331287,154.98450155,9.999e-05,2]
[327738971,1716410373637,154.98450155,9.999e-05,2]
[327738972,1716410435351,-7897.30988261,0.00017908,2]
[327738973,1716410435375,-1668.03138039,0.00017909,2]
[327738974,1716410465217,3373.07904587,9.999e-05,2]
[327738975,1716410469902,234.35329789,9.999e-05,2]
[327738976,1716410478060,5957.90891924,9.999e-05,2]
[327738977,1716410478082,4534.6733298,9.999e-05,2]
[327738980,1716410496042,14811.10575817,9.999e-05,2]
[327738981,1716410516073,2229.18131326,9.999e-05,2]
[327739004,1716410985755,1339.50128837,9.999e-05,2]
[327739007,1716411029954,285.15949303,9.999e-05,2]
[327739030,1716411032457,455.62493126,9.999e-05,2]
[327739063,1716411038553,-15000.0,0.0001605,2]
[327739064,1716411038562,-187.44398225,0.0001605,2]
[327739065,1716411038581,-2492.47326874,0.0001605,2]
[327739066,1716411038590,-9402.71670639,0.00016051,2]
[327739067,1716411038599,-9565.3412631,0.00016053,2]
[327739068,1716411038609,-1516.00313,0.00016662,2]
[327739069,1716411038618,-155.28330588,0.00016941,2]
[327739070,1716411038627,-18557.2941167,0.00017041,2]
[327739071,1716411038636,-915.3071874,0.00017194,2]
[327739073,1716411038645,-6400.1266267,0.00017797,2]
[327739075,1716411038655,-387.48717316,0.000189,2]
[327739076,1716411038664,-155.56310174,0.00018966,2]
[327739077,1716411038673,-309.86659825,0.00018966,2]
[327739079,1716411038682,-457.37351305,0.00018966,2]
[327739080,1716411038692,-189.85857616,0.00018966,2]
[327739081,1716411038701,-274.0226886,0.00018966,2]
[327739082,1716411038710,-237.16938398,0.00018966,2]
[327739083,1716411038719,-531.82973432,0.00018966,2]
[327739084,1716411038728,-178.7337566,0.00018966,2]
[327739085,1716411038737,-309.88090155,0.00018966,2]
[327739086,1716411038747,-269.90429986,0.00018966,2]
[327739087,1716411038756,-1892.55724184,0.00018966,2]
[327739088,1716411038766,-155.06192947,0.00018966,2]
[327739089,1716411038775,-2408.54357645,0.00018966,2]
[327739090,1716411038784,-208.36578461,0.00018966,2]
[327739091,1716411038793,-236.8730716,0.00018966,2]
[327739092,1716411038802,-155.38901711,0.00018966,2]
[327739093,1716411038812,-163.71907756,0.00018966,2]
[327739094,1716411038824,-311.06332629,0.00018966,2]
[327739095,1716411038834,-844.70416567,0.00018966,2]
[327739096,1716411038843,-186.24296536,0.00018966,2]
[327739097,1716411038853,-172.9587298,0.00018966,2]
[327739098,1716411038862,-207.96022806,0.00018966,2]
[327739099,1716411038871,-631.63667576,0.00018966,2]
[327739100,1716411038880,-725.0573975,0.00018966,2]
[327739101,1716411038890,-910.6581071,0.00018966,2]
[327739102,1716411038901,-156.25724294,0.00018966,2]
[327739103,1716411038913,-189.56556733,0.00018966,2]
[327739104,1716411038922,-77.66929249,0.00018966,2]
[327739105,1716411038934,-174.29544616,0.00018966,2]
[327739106,1716411038945,-4292.15626365,0.00018966,2]
[327739107,1716411038955,-281.61001373,0.00018966,2]
[327739108,1716411038964,-381.92295026,0.00018966,2]
[327739109,1716411038973,-1009.71014182,0.00018966,2]
[327739110,1716411038987,-327.66398339,0.00018966,2]
[327739111,1716411038997,-1502.69503457,0.00018967,2]
[327739112,1716411039007,-9653.10353986,0.00018968,2]
[327739113,1716411039027,-2199.24001114,0.00018968,2]
[327739114,1716411039246,158.58875339,9.999e-05,2]
[327739131,1716411041725,-1500.36449618,0.00018968,2]
[327739132,1716411042617,-46070.19678104,0.00018968,2]
[327739133,1716411042628,-154.97569017,0.00018972,2]
[327739134,1716411042639,-162.560857,0.00019,2]
[327739135,1716411042649,-155.28330588,0.00019078,2]
[327739136,1716411042659,-184.61982354,0.000191,2]
[327739137,1716411042670,-495.37185872,0.00019178,2]
[327739138,1716411042679,-500.0,0.00019178,2]
[327739139,1716411042690,-500.0,0.00019178,2]
[327739140,1716411042700,-500.0,0.00019178,2]
[327739141,1716411042709,-500.0,0.00019178,2]
[327739142,1716411042719,-500.0,0.00019178,2]
[327739143,1716411042728,-500.0,0.00019178,2]
[327739144,1716411042738,-500.0,0.00019178,2]
[327739145,1716411042747,-500.0,0.00019178,2]
[327739146,1716411042756,-500.0,0.00019178,2]
[327739147,1716411042766,-500.0,0.00019178,2]
[327739148,1716411042776,-500.0,0.00019178,2]
[327739149,1716411042785,-500.0,0.00019178,2]
[327739150,1716411042795,-500.0,0.00019178,2]
[327739151,1716411042805,-500.0,0.00019178,2]
[327739152,1716411042815,-500.0,0.00019178,2]
[327739153,1716411042826,-500.0,0.00019178,2]
[327739154,1716411042836,-500.0,0.00019178,2]
[327739155,1716411042845,-500.0,0.00019178,2]
[327739156,1716411042856,-500.0,0.00019178,2]
[327739157,1716411042866,-500.0,0.00019178,2]
[327739158,1716411042875,-500.0,0.00019178,2]
[327739159,1716411042885,-500.0,0.00019178,2]
[327739160,1716411042895,-500.0,0.00019178,2]
[327739161,1716411042911,-500.0,0.00019178,2]
[327739162,1716411042920,-500.0,0.00019178,2]
[327739163,1716411042930,-500.0,0.00019178,2]
[327739164,1716411042939,-500.0,0.00019178,2]
[327739165,1716411042951,-122.49579686,0.00019178,2]
[327739172,1716411043294,-377.50420314,0.00019178,2]
[327739173,1716411043304,-219.47854315,0.00019178,2]
[327739174,1716411043481,1043.65339841,9.999e-05,2]
[327739177,1716411043718,-328.73044759,0.00019178,2]
[327739178,1716411043728,-500.0,0.00019178,2]
[327739179,1716411043738,-500.0,0.00019178,2]
[327739180,1716411043748,-500.0,0.00019178,2]
[327739181,1716411043758,-500.0,0.00019178,2]
[327739182,1716411043768,-500.0,0.00019178,2]
[327739183,1716411043933,-221.04224831,0.0002,2]
[327739184,1716411043944,-330.82150189,0.00020912,2]
[327739185,1716411043954,-311.51724169,0.000223,6]
[327739186,1716411043964,-387.48717316,0.000239,2]
[327739187,1716411043974,-151.0,0.00024081,5]
[327739188,1716411043985,-151.0,0.00024081,5]
[327739189,1716411043997,-231.438203,0.00024384,2]
[327739190,1716411044007,-151.0,0.0002493,5]
[327739191,1716411044017,-151.0,0.0002493,5]
[327739192,1716411044026,-678.14498257,0.00025107,2]
[327739193,1716411044036,-496.0,0.00025624,2]
[327739194,1716411044046,-151.0,0.0002578,5]
[327739195,1716411044056,-6895.68318444,0.00026,2]
[327739196,1716411044066,-658.65724448,0.00026124,2]
[327739197,1716411044078,-417.9,0.000264,2]
[327739198,1716411044088,-4224.86010977,0.0002659,2]
[327739199,1716411044098,-151.0,0.00026629,5]
[327739200,1716411044107,-417.39872503,0.00026725,2]
[327739201,1716411044116,-477.27536979,0.00026726,2]
[327739202,1716411044126,-153.24745066,0.00026728,2]
[327739203,1716411044136,-300.0,0.0002673,2]
[327739204,1716411044146,-1000.0,0.00026732,2]
[327739205,1716411044156,-1000.0,0.00026799,2]
[327739206,1716411044166,-1000.0,0.00026844,2]
[327739207,1716411044176,-300.0,0.00026852,2]
[327739208,1716411044186,-300.0,0.00026858,2]
[327739209,1716411044195,-300.0,0.00026865,2]
[327739210,1716411044205,-151.0,0.000269,2]
[327739212,1716411044215,-1000.0,0.00026911,2]
[327739214,1716411044224,-1000.0,0.0002694,2]
[327739216,1716411044234,-1000.0,0.00026968,2]
[327739218,1716411044243,-297.64342506,0.00026972,2]
[327739219,1716411044252,-2695.12,0.00026986,3]
[327739220,1716411044262,-1000.0,0.00026995,2]
[327739222,1716411044272,-4126.02967205,0.00026996,2]
[327739224,1716411044282,-311.02701168,0.00026996,2]
[327739225,1716411044291,-22683.67179847,0.00026996,2]
[327739226,1716411044301,-162.88327498,0.00026996,2]
[327739227,1716411044311,-1149.34526784,0.00026996,2]
[327739228,1716411044321,-194.98916156,0.00026996,2]
[327739229,1716411044333,-304.05659204,0.00026996,2]
[327739230,1716411044343,-690.19911136,0.00026996,2]
[327739231,1716411044352,-173.99801437,0.00026996,2]